bitfinex/quotes_ETHUSD_20230702
["timestamp","ask_amount","ask_price","bid_price","bid_amount"]
[1688319844841,15.31569483,1914.2,1913.6,5.22574]
[1688319845035,1.53156948,1914.1,1913.7,5.22547]
[1688319845235,5.22471,1914.0,1913.7,10.45094]
[1688319845440,7.70821,1914.0,1913.7,10.45094]
[1688319845746,0.002913,1913.9,1913.7,10.45094]
[1688319846268,0.002913,1913.9,1913.7,13.06367]
[1688319848455,0.002913,1913.9,1913.7,5.22547]
[1688319848657,0.002913,1913.9,1913.7,13.06367]
[1688319849075,0.002913,1913.9,1913.8,0.26773971]
[1688319849276,0.002913,1913.9,1913.8,0.28247351]
[1688319849475,0.002913,1913.9,1913.8,13.34547351]
[1688319849685,2.6329,1914.2,1913.8,15.82819305]
[1688319850345,2.6329,1914.2,1913.8,16.77819305]
[1688319850553,6.17895,1914.7,1914.1,13.0609]
[1688319850895,3.55670559,1914.8,1914.1,13.0609]
[1688319850896,2.6329,1914.6,1914.2,0.26773971]
[1688319851031,2.6329,1914.6,1914.3,13.05945]
[1688319851439,2.6329,1914.6,1914.3,13.32718971]
[1688319853171,1.24448626,1915.1,1914.4,1.21673971]
[1688319853484,1.24448626,1915.1,1914.6,13.05747]
[1688319853485,2.4887,1914.9,1914.6,13.05747]
[1688319853864,2.48521553,1914.9,1914.6,13.05747]
[1688319854701,0.00299623,1914.8,1914.6,13.05747]
[1688319855693,2.48521553,1914.9,1914.6,13.05747]
[1688319856697,0.00299623,1914.8,1914.6,13.05747]
[1688319857687,2.48521553,1914.9,1914.6,13.05747]
[1688319858694,0.00299623,1914.8,1914.6,13.05747]
[1688319859351,0.00299623,1914.8,1914.6,10.44598]
[1688319859556,7.70747553,1914.9,1914.6,10.44598]
[1688319859864,2.48521553,1914.9,1914.6,13.05749]
[1688319860798,0.00299977,1914.8,1914.6,13.05749]
[1688319861000,0.00299977,1914.8,1914.6,14.36471184]
[1688319861390,0.00299977,1914.8,1914.6,13.05749]
[1688319861559,2.48521553,1914.9,1914.6,13.05749]
[1688319861767,0.81702742,1915.3,1914.6,14.01349]
[1688319862100,2.5884,1915.2,1914.6,13.05749]
[1688319862670,0.0030275,1915.1,1914.6,14.69479]
[1688319862963,0.0030275,1915.1,1914.8,13.05605]
[1688319864663,0.0030275,1915.1,1914.8,10.44484]
[1688319864664,5.2246875,1915.1,1914.8,10.44484]
[1688319864867,0.0030275,1915.1,1914.8,10.44484]
[1688319865067,0.0030275,1915.1,1914.8,13.05607]
[1688319865271,0.87892425,1915.1,1914.8,13.05607]
[1688319866775,0.0030275,1915.1,1914.8,13.05607]
[1688319866980,0.0030275,1915.1,1914.9,0.00574635]
[1688319867287,0.0030275,1915.1,1915.0,13.05482]
[1688319872609,2.93965372,1915.4,1915.0,13.05482]
[1688319873613,0.00281168,1915.3,1915.0,13.05482]
[1688319874618,2.93965372,1915.4,1915.0,17.30892784]
[1688319874816,2.93965372,1915.4,1915.1,0.00524599]
[1688319875025,2.93965372,1915.4,1915.2,10.44276]
[1688319875621,0.00281168,1915.3,1915.2,5.22138]
[1688319875999,0.00281168,1915.3,1915.1,5.2215]
[1688319876190,0.00281168,1915.3,1915.2,5.22138]
[1688319876684,13.38165372,1915.4,1915.2,5.22138]
[1688319877623,0.00281168,1915.3,1915.2,5.22138]
[1688319878618,13.38165372,1915.4,1915.2,5.22138]
[1688319879120,14.98084709,1915.4,1915.0,5.22173]
[1688319879338,14.98084709,1915.4,1915.1,5.22163]
[1688319879339,15.93684709,1915.4,1915.1,5.22163]
[1688319879700,5.22405168,1915.3,1915.1,5.22163]
[1688319880693,5.22405168,1915.3,1915.1,10.44328]
[1688319881330,0.00281168,1915.3,1915.1,10.44328]
[1688319881531,0.00281168,1915.3,1915.1,13.0541]
[1688319881822,8.16058372,1915.4,1915.1,13.0541]
[1688319882628,0.00281168,1915.3,1915.1,13.0541]
[1688319883599,8.16058372,1915.4,1915.1,13.0541]
[1688319884629,0.00281168,1915.3,1915.1,13.0541]
[1688319885735,8.16058372,1915.4,1915.1,13.0541]
[1688319886731,0.00281168,1915.3,1915.1,13.0541]
[1688319887097,5.22392168,1915.3,1915.1,10.44328]
[1688319887737,5.22392168,1915.3,1914.9,5.22203]
[1688319887738,12.73448222,1915.3,1914.9,5.22203]
[1688319887993,12.73448222,1915.3,1915.0,5.22182]
[1688319890842,11.78348222,1915.3,1915.0,10.44375]
[1688319891703,12.73948222,1915.3,1915.0,10.44375]
[1688319891904,11.78348222,1915.3,1915.0,10.44375]
[1688319895138,12.60050964,1915.3,1915.0,10.44375]
[1688319896918,12.60050964,1915.3,1914.8,5.23709611]
[1688319896919,1.26005096,1915.2,1914.8,5.23709611]
[1688319897118,13.05424,1915.1,1914.7,1.7442]
[1688319897324,2.4723,1915.0,1914.8,5.22246]
[1688319897527,7.69427,1915.0,1914.8,10.44493]
[1688319897727,0.00300902,1914.9,1914.8,10.44493]
[1688319899752,0.00300902,1914.9,1914.8,13.05616]
[1688319901357,0.00300902,1914.9,1914.8,5.22246]
[1688319901934,0.00300902,1914.9,1914.8,10.44493]
[1688319904665,0.00300902,1914.9,1914.8,5.22246]
[1688319905030,0.00300902,1914.9,1914.8,10.44493]
[1688319906556,0.00300902,1914.9,1914.8,5.22246]
[1688319906863,16.41587578,1914.9,1914.6,5.2229]
[1688319907034,6.03964742,1914.8,1914.6,5.2229]
[1688319907233,6.03964742,1914.8,1914.6,10.44592]
[1688319907437,0.81702742,1914.8,1914.6,10.44592]
[1688319907633,0.00343102,1914.7,1914.6,10.44592]
[1688319909330,0.00343102,1914.7,1914.6,13.05743]
[1688319910769,13.94918926,1914.9,1914.6,13.05743]
[1688319911668,0.00286843,1914.8,1914.6,13.05743]
[1688319912537,5.22535843,1914.8,1914.6,10.44592]
[1688319912739,0.81702742,1914.9,1914.6,10.44592]
[1688319913154,4.37960828,1915.0,1914.6,14.53177584]
[1688319913329,3.28932742,1915.0,1914.6,14.53177584]
[1688319913524,3.28932742,1915.0,1914.6,15.75251555]
[1688319913755,0.00287767,1914.9,1914.6,15.75251555]
[1688319928133,0.00287767,1914.9,1914.6,14.79951555]
[1688319928339,0.00287767,1914.9,1914.7,1.47995156]
[1688319928644,0.00287767,1914.9,1914.8,13.05617]
[1688319935518,0.00287767,1914.9,1914.8,14.27990971]
[1688319935824,1.09028086,1915.3,1914.8,19.98237971]
[1688319935825,0.81702742,1915.3,1914.8,19.98237971]
[1688319936143,0.81702742,1915.3,1915.0,15.66561]
[1688319936766,0.00323775,1915.2,1915.0,15.66561]
[1688319937065,0.00323775,1915.2,1915.0,16.61461]
[1688319938359,0.00323775,1915.2,1915.0,15.66561]
[1688319941825,4.39770828,1915.4,1915.0,15.66561]
[1688319942025,4.39770828,1915.4,1915.0,17.6940248]
[1688319942262,0.81702742,1915.3,1915.0,17.6940248]
[1688319942621,0.00311572,1915.2,1915.0,17.6940248]
[1688319943156,0.00311572,1915.2,1915.0,15.0830848]
[1688319943363,0.00311572,1915.2,1915.0,13.05467]
[1688319947670,11.27826828,1915.4,1915.0,13.05467]
[1688319948400,0.81702742,1915.3,1915.0,13.05467]
[1688319948806,0.82015163,1915.3,1915.0,13.05467]
[1688319949890,6.04128163,1915.3,1915.0,13.05467]
[1688319951526,0.82015163,1915.3,1915.0,13.05467]
[1688319962146,0.00312421,1915.3,1915.0,14.621243]
[1688319962448,0.00312421,1915.3,1915.0,14.88898271]
[1688319962612,0.81702742,1915.4,1915.0,16.66578271]
[1688319963242,2.5,1915.3,1915.0,16.66578271]
[1688319963598,0.00311572,1915.2,1915.0,16.66578271]
[1688319963845,0.00311572,1915.2,1915.1,2.61557827]
[1688319964163,0.00311572,1915.2,1915.1,17.33145827]
[1688319970466,0.00311572,1915.2,1915.1,14.72063827]
[1688319975383,0.00311572,1915.2,1915.1,5.22165]
[1688319975670,0.00311572,1915.2,1915.1,10.4433]
[1688319977208,0.00311572,1915.2,1914.8,2.62589611]
[1688319977409,0.81702742,1915.1,1914.7,10.4452]
[1688319977705,13.85033928,1915.1,1914.7,5.22256]
[1688319978076,12.76005842,1915.1,1914.7,10.44531]
[1688319978293,13.79538742,1915.0,1914.7,5.22256]
[1688319978507,8.57345742,1915.0,1914.7,5.22265]
[1688319978667,0.00297661,1914.9,1914.7,5.22265]
[1688319978994,0.00297661,1914.9,1914.7,10.4454]
[1688319979368,0.00297661,1914.9,1914.7,5.22265]
[1688319979811,0.00297661,1914.9,1914.7,10.4454]
[1688319980007,0.00297661,1914.9,1914.7,5.22265]
[1688319980726,0.00297661,1914.9,1914.7,10.4454]
[1688319981204,0.00297661,1914.9,1914.7,5.22265]
[1688319981405,0.00297661,1914.9,1914.7,10.4454]
[1688319982503,0.00297661,1914.9,1914.7,5.22265]
[1688319982823,0.00297661,1914.9,1914.7,10.4454]
[1688319983593,10.0,1914.8,1914.7,10.4454]
[1688319984682,10.00296811,1914.8,1914.7,10.4454]
[1688319984883,10.00296811,1914.8,1914.7,5.22265]
[1688319985100,21.44820492,1914.8,1914.4,8.22337]
[1688319985311,16.22573492,1914.8,1914.4,5.22337]
[1688319985511,16.22573492,1914.8,1914.4,5.22354]
[1688319985715,16.22573492,1914.8,1914.4,10.4471]
[1688319985925,2.5029,1914.7,1914.4,10.4471]
[1688319986429,2.5029,1914.7,1914.4,13.05888]
[1688319986596,0.00295112,1914.6,1914.4,14.364768]
[1688319986991,0.00295112,1914.6,1914.4,14.63250771]
[1688319987231,0.00295112,1914.6,1914.4,15.0580491]
[1688319987537,0.00295112,1914.6,1914.5,0.26773971]
[1688319987735,0.81702742,1915.1,1914.5,17.40110297]
[1688319987736,2.5605,1915.1,1914.5,17.40110297]
[1688319988040,0.81702742,1915.3,1914.8,15.66734]
[1688319988194,3.37752742,1915.3,1914.8,15.66734]
[1688319988532,3.37752742,1915.3,1915.0,13.05467]
[1688319988706,0.00289416,1915.2,1915.0,13.05467]
[1688319988912,0.00289416,1915.2,1915.0,13.32240971]
[1688319989734,10.00289416,1915.2,1915.0,13.32240971]
[1688319995345,10.00289416,1915.2,1915.0,14.81634068]
[1688319996072,10.00289416,1915.2,1915.0,17.50386252]
[1688319996354,10.00289416,1915.2,1915.0,18.11556097]
[1688319996650,0.00289416,1915.2,1915.1,14.27785971]
[1688319996848,0.00289416,1915.2,1915.1,15.95107096]
[1688319998241,0.00289416,1915.2,1915.1,16.90407096]
[1688319999141,0.00289416,1915.2,1915.1,10.4433]
[1688319999546,0.00289416,1915.2,1915.1,13.05412]
[1688320004255,0.00289416,1915.2,1915.1,16.22164184]
[1688320004455,0.00289416,1915.2,1915.1,13.05412]
[1688320005839,0.00289416,1915.2,1915.1,13.32185971]
[1688320006176,0.00289416,1915.2,1915.1,15.53292968]
[1688320007327,0.00289416,1915.2,1915.1,16.01292968]
[1688320008567,10.00289416,1915.2,1915.1,16.01292968]
[1688320009470,10.00289416,1915.2,1915.1,18.70045152]
[1688320009782,10.00289416,1915.2,1915.1,19.65045152]
[1688320010339,10.00289416,1915.2,1915.1,22.65045152]
[1688320011982,10.00289416,1915.2,1915.1,28.13245152]
[1688320012181,4.37215416,1915.2,1915.1,28.13245152]
[1688320012475,2.5,1915.3,1915.1,28.13245152]
[1688320012646,2.5,1915.3,1915.2,27.7839567]
[1688320013646,12.5,1915.3,1915.2,27.79867973]
[1688320014542,12.5,1915.3,1915.2,18.86669515]
[1688320014774,12.5,1915.3,1915.2,5.22138]
[1688320014969,12.5,1915.3,1915.2,5.24591889]
[1688320015175,12.5,1915.3,1915.2,5.22138]
[1688320015481,12.5,1915.3,1915.0,5.22188]
[1688320015651,12.5,1915.3,1914.7,3.56429]
[1688320015850,10.44339,1915.1,1914.6,5.22291]
[1688320016079,11.39939,1915.1,1914.6,13.13318184]
[1688320016238,11.39939,1915.1,1914.6,7.91033184]
[1688320016443,11.39939,1915.1,1914.7,5.2227]
[1688320016643,14.03409,1915.1,1914.7,5.2227]
[1688320016901,15.823568,1915.1,1914.7,5.2227]
[1688320017048,15.823568,1915.1,1914.6,2.68752184]
[1688320017381,14.867568,1915.1,1914.7,5.22271]
[1688320017768,10.0,1914.8,1914.7,5.22271]
[1688320018192,10.0,1914.8,1914.7,10.44546]
[1688320020370,10.0,1914.8,1914.6,5.22289]
[1688320020580,20.44495,1914.8,1914.5,0.01472841]
[1688320020894,15.22247,1914.8,1914.5,8.23796841]
[1688320021469,10.0,1914.8,1914.5,13.46125841]
[1688320021693,10.0,1914.6,1914.5,13.46125841]
[1688320022396,10.0,1914.6,1914.5,17.98959268]
[1688320022961,10.0,1914.6,1914.5,17.72185297]
[1688320023174,10.0,1914.6,1914.5,5.23796841]
[1688320023377,10.0,1914.6,1914.4,5.22335]
[1688320023604,15.22316,1914.6,1914.4,5.22351]
[1688320023812,15.22303,1914.6,1914.3,5.22357]
[1688320024007,15.22303,1914.6,1914.3,10.44741]
[1688320024587,10.0,1914.5,1914.3,10.44741]
[1688320025118,10.0,1914.5,1914.3,5.22357]
[1688320025279,15.2234,1914.5,1914.3,5.22357]
[1688320025605,10.0,1914.5,1914.3,10.44741]
[1688320025810,10.0,1914.5,1914.3,5.22357]
[1688320026398,10.0,1914.5,1914.3,10.44741]
[1688320026612,13.98063,1914.7,1914.3,10.44741]
[1688320026816,10.0,1914.4,1914.3,10.44741]
[1688320027014,10.0,1914.4,1914.3,10.46213995]
[1688320029511,10.0,1914.4,1914.3,5.23829995]
[1688320029708,10.0,1914.4,1914.3,0.01472995]
[1688320030025,10.0,1914.4,1914.2,5.22387]
[1688320030885,10.0,1914.4,1914.2,10.44798]
[1688320031630,10.0,1914.3,1914.2,10.44798]
[1688320031932,10.0,1914.3,1914.1,5.22422]
[1688320032126,10.0,1914.3,1914.2,5.22411]
[1688320032322,10.0,1914.3,1914.2,10.44822]
[1688320032529,10.0,1914.3,1914.2,5.22411]
[1688320032730,10.0,1914.3,1914.2,10.44822]
[1688320032931,10.0,1914.3,1914.2,13.06027]
[1688320035546,10.0,1914.3,1914.2,10.44822]
[1688320036141,10.0,1914.3,1914.2,5.22411]
[1688320036610,10.0,1914.3,1914.2,10.44822]
[1688320040284,10.0,1914.3,1914.2,11.754261]
[1688320040554,10.0,1914.3,1914.2,14.366311]
[1688320040757,12.5235,1914.4,1914.2,14.366311]
[1688320041628,2.5235,1914.4,1914.2,14.366311]
[1688320043836,2.5235,1914.4,1914.2,14.38104172]
[1688320044356,2.5235,1914.4,1914.3,1.43810417]
[1688320044524,2.5235,1914.4,1914.3,14.49770417]
[1688320045536,12.5,1914.5,1914.3,14.49770417]
[1688320046560,12.5,1914.5,1914.4,0.01472918]
[1688320047063,12.5,1914.5,1914.4,13.07362918]
[1688320047248,12.5,1914.5,1914.4,14.78599451]
[1688320052696,12.5,1914.5,1914.4,16.00973422]
[1688320057675,12.5,1914.5,1914.4,15.05373422]
[1688320060575,12.5,1914.5,1914.4,13.34136889]
[1688320062678,12.5,1914.5,1914.4,10.46184918]
[1688320062880,12.5,1914.5,1914.4,5.23828918]
[1688320063374,12.5,1914.5,1914.2,5.61204]
[1688320063375,12.5,1914.5,1914.2,3.0]
[1688320063585,17.72329,1914.5,1914.2,5.22409]
[1688320063786,14.889747,1914.5,1914.2,10.4482]
[1688320064274,14.889747,1914.5,1914.2,5.22409]
[1688320064481,14.889747,1914.5,1914.2,10.4482]
[1688320064712,14.889747,1914.5,1914.2,13.06025]
[1688320065007,14.889747,1914.5,1914.2,10.4482]
[1688320065222,25.336447,1914.5,1914.1,5.22425]
[1688320065378,2.6862,1914.4,1914.1,10.4485]
[1688320065772,10.0,1914.2,1914.1,10.4485]
[1688320065973,10.0,1914.2,1914.1,13.4485]
[1688320066480,10.0,1914.2,1914.1,13.06069]
[1688320067066,10.0,1914.2,1914.1,13.96853779]
[1688320068174,10.0,1914.2,1914.1,13.06069]
[1688320069087,10.0,1914.2,1914.1,13.96854134]
[1688320070184,10.0,1914.2,1914.1,13.06069]
[1688320075306,10.0,1914.2,1914.1,14.62946023]
[1688320085623,10.0,1914.2,1914.1,15.53727855]
[1688320086649,10.0,1914.2,1914.1,14.62946023]
[1688320087662,10.0,1914.2,1914.1,15.80502502]
[1688320092149,10.0,1914.2,1914.1,18.49254686]
[1688320092354,10.0,1914.2,1914.1,23.46396996]
[1688320092662,12.5,1914.5,1914.1,24.825529]
[1688320092870,12.5,1914.5,1914.2,9.55789982]
[1688320093028,12.5,1914.5,1914.3,13.0596]
[1688320093234,12.5,1914.5,1914.3,15.74712184]
[1688320103781,12.5,1914.5,1914.3,13.0596]
[1688320104162,12.5,1914.5,1914.2,3.0]
[1688320104364,14.272315,1914.5,1914.2,10.44785]
[1688320104560,27.330615,1914.5,1914.0,5.22457]
[1688320104761,2.6074,1914.4,1914.0,10.44925]
[1688320105054,0.956,1914.3,1914.0,10.44925]
[1688320105265,4.38042742,1914.4,1914.0,13.06158]
[1688320105559,3.5634,1914.4,1914.0,13.06158]
[1688320105771,3.5634,1914.4,1914.0,10.44925]
[1688320105989,8.787,1914.4,1914.0,13.06158]
[1688320106560,3.5634,1914.4,1914.0,13.06158]
[1688320106882,10.0,1914.3,1914.0,13.06158]
[1688320113106,15.22384,1914.3,1914.0,13.06158]
[1688320113315,15.22384,1914.3,1914.0,10.44925]
[1688320113668,10.0,1914.2,1914.0,10.44925]
[1688320113868,10.0,1914.2,1914.0,5.22459]
[1688320123618,10.0,1914.2,1914.0,10.44925]
[1688320124718,15.22384,1914.3,1914.0,5.22459]
[1688320125599,10.0,1914.2,1914.0,5.22459]
[1688320127652,10.0,1914.2,1914.0,10.44925]
[1688320128753,10.0,1914.2,1914.0,5.22459]
[1688320129709,15.22384,1914.3,1914.0,10.44925]
[1688320130659,15.22384,1914.3,1914.0,5.22459]
[1688320130660,10.0,1914.2,1914.0,5.22459]
[1688320132116,10.0,1914.2,1914.0,10.44925]
[1688320133660,10.0,1914.3,1914.0,10.44925]
[1688320135270,15.22385,1914.3,1914.0,10.44925]
[1688320136551,10.0,1914.2,1914.0,10.44925]
[1688320146662,10.0,1914.2,1914.0,5.22459]
[1688320148926,10.0,1914.2,1914.0,10.44925]
[1688320149652,15.22385,1914.3,1914.0,10.44925]
[1688320153156,15.22385,1914.3,1914.0,5.22459]
[1688320153684,10.0,1914.2,1914.0,5.22459]
[1688320159654,15.22385,1914.3,1914.0,5.22459]
[1688320160304,17.77356874,1914.3,1913.9,10.44952]
[1688320160672,10.0,1914.2,1913.9,10.44952]
[1688320162220,9.8,1914.2,1913.9,10.44952]
[1688320163829,10.0,1914.2,1913.9,10.44952]
[1688320164994,10.0,1914.2,1914.0,0.90796795]
[1688320165487,10.0,1914.2,1914.0,11.35705795]
[1688320165689,15.22385,1914.3,1914.0,10.44909]
[1688320167635,5.22385,1914.3,1914.0,10.44909]
[1688320168940,15.22385,1914.3,1914.0,10.44909]
[1688320170142,16.04087742,1914.3,1914.0,5.22444]
[1688320170838,10.0,1914.2,1914.0,5.22444]
[1688320173012,15.22424,1914.2,1913.8,1.6363338]
[1688320173224,20.44848,1914.2,1913.8,9.8614738]
[1688320173522,20.44848,1914.2,1913.8,15.0866738]
[1688320173741,10.0,1913.9,1913.8,15.0866738]
[1688320173943,10.0,1913.9,1913.8,11.32581908]
[1688320174162,10.0,1913.9,1913.8,16.55101908]
[1688320174515,10.0,1913.9,1913.8,11.32581908]
[1688320174714,2.6155,1914.1,1913.8,11.32581908]
[1688320174916,2.6155,1914.1,1913.9,6.13293314]
[1688320175155,2.6155,1914.1,1913.8,13.4650738]
[1688320175359,2.6155,1914.1,1913.9,0.9080102]
[1688320175858,10.0,1914.0,1913.9,6.1328502]
[1688320177570,10.0,1914.0,1913.9,5.22484]
[1688320178071,10.0,1914.0,1913.8,8.2397738]
[1688320179735,10.0,1914.0,1913.8,3.0147338]
[1688320180445,10.0,1914.0,1913.8,8.2399238]
[1688320180646,10.0,1913.9,1913.8,8.2399238]
[1688320180955,10.0,1913.9,1913.8,9.14795627]
[1688320182051,10.0,1913.9,1913.8,6.14795627]
[1688320183387,10.0,1913.9,1913.8,0.92276627]
[1688320183685,10.0,1913.9,1913.8,6.14796627]
[1688320186876,10.0,1913.9,1913.8,11.37316627]
[1688320188284,10.0,1913.9,1913.8,0.90803247]
[1688320188684,10.0,1913.9,1913.8,6.13323247]
[1688320189259,10.0,1913.9,1913.8,0.90803247]
[1688320193650,10.0,1913.9,1913.7,10.45071]
[1688320193850,10.0,1913.9,1913.8,0.90804699]
[1688320194063,10.0,1913.9,1913.8,0.90804452]
[1688320194548,10.0,1913.9,1913.7,5.22534]
[1688320195691,10.0,1913.8,1913.7,5.22534]
[1688320195897,10.0,1913.8,1913.7,6.13340311]
[1688320200281,10.0,1913.8,1913.7,0.90806311]
[1688320204215,10.0,1913.8,1913.7,6.13353311]
[1688320204420,10.0,1913.8,1913.7,0.90806311]
[1688320205716,10.0,1913.8,1913.7,6.13353311]
[1688320207331,10.0,1913.8,1913.7,5.22547]
[1688320208528,10.0,1913.8,1913.7,11.35902151]
[1688320208824,10.0,1913.8,1913.7,15.71174202]
[1688320209717,10.0,1913.8,1913.7,18.39926386]
[1688320210924,10.0,1913.8,1913.7,19.35026386]
[1688320211638,2.5,1914.0,1913.7,20.15342667]
[1688320211795,2.5,1914.0,1913.9,14.01532]
[1688320212228,2.5,1914.0,1913.9,14.49532]
[1688320212595,2.5,1914.0,1913.9,15.40329601]
[1688320222369,2.5,1914.0,1913.9,14.45029601]
[1688320225460,2.5,1914.0,1913.9,13.54232]
[1688320231840,2.50293768,1914.0,1913.9,13.54232]
[1688320232047,2.50293768,1914.0,1913.9,15.67220383]
[1688320235885,0.18720872,1914.0,1913.9,32.81421535]
[1688320236054,10.0,1914.2,1913.9,38.61350772]
[1688320236296,10.0,1914.2,1914.1,1.8704277]
[1688320236479,10.0,1914.2,1914.1,34.78600794]
[1688320236821,4.2166,1914.8,1914.1,39.89570253]
[1688320236975,4.2166,1914.8,1914.3,21.84561]
[1688320237178,4.2166,1914.8,1914.4,0.48]
[1688320237179,5.03362742,1914.8,1914.4,0.48]
[1688320237375,5.03362742,1914.8,1914.4,5.70347]
[1688320237376,5.98962742,1914.8,1914.4,5.70347]
[1688320237576,0.59896274,1914.7,1914.4,10.92703]
[1688320237881,10.60210408,1914.7,1914.4,5.70347]
[1688320238111,10.00314134,1914.7,1914.4,13.53881]
[1688320238317,10.00314134,1914.7,1914.4,13.55353918]
[1688320239728,0.00314134,1914.7,1914.4,13.55353918]
[1688320244907,0.00314134,1914.7,1914.4,13.53881]
[1688320245203,0.00314134,1914.7,1914.4,10.92703]
[1688320246232,0.00314134,1914.7,1914.4,13.53881]
[1688320249935,1.47471547,1914.7,1914.3,5.22369]
[1688320259051,0.52071547,1914.7,1914.3,5.22369]
[1688320261727,0.94817544,1914.7,1914.3,5.22369]
[1688320265750,1.90417544,1914.7,1914.1,1.64923149]
[1688320265950,6.17129,1914.5,1913.7,3.16080739]
[1688320266166,14.00641,1914.5,1913.9,5.22467]
[1688320266411,13.06002,1914.3,1913.9,5.22484]
[1688320266562,1.306002,1914.2,1913.9,10.44977]
[1688320266770,5.22397,1914.3,1913.9,10.44977]
[1688320267586,5.22397,1914.3,1913.9,13.06223]
[1688320267816,25.74878,1914.4,1913.9,13.06223]
[1688320267998,0.954,1914.3,1913.9,13.06223]
[1688320268202,11.4017,1914.3,1913.9,10.44977]
[1688320268409,1.14017,1914.2,1913.9,10.44977]
[1688320268721,11.14017,1914.2,1913.9,10.44977]
[1688320269520,10.0,1914.2,1914.0,0.01473226]
[1688320269691,9.56889,1914.4,1914.1,5.22438]
[1688320270016,14.79261,1914.4,1914.0,10.46385226]
[1688320270219,14.79261,1914.4,1914.0,5.23929226]
[1688320270724,10.0,1914.3,1914.0,5.23929226]
[1688320270900,15.22385,1914.3,1914.0,5.23929226]
[1688320271589,5.22385,1914.3,1914.0,5.23929226]
[1688320272635,5.22385,1914.3,1914.0,10.46395226]
[1688320272928,5.22385,1914.3,1914.0,5.23929226]
[1688320273286,5.22385,1914.3,1913.8,0.90796623]
[1688320273287,12.714404,1914.3,1913.8,0.90796623]
[1688320274728,22.714404,1914.3,1913.8,0.90796623]
[1688320275026,25.326324,1914.3,1913.8,0.90796623]
[1688320278140,25.326324,1914.3,1913.8,6.13315623]
[1688320278345,6.18024,1914.2,1913.8,6.13315623]
[1688320278738,5.22424,1914.2,1913.8,6.13315623]
[1688320278949,2.5222,1914.1,1913.8,11.35835623]
[1688320279160,2.5222,1914.1,1913.8,12.75693831]
[1688320280072,0.948,1914.3,1913.9,2.68752184]
[1688320280278,2.7289,1914.4,1914.0,10.9292]
[1688320280578,2.7289,1914.4,1914.0,15.25436728]
[1688320281068,7.95248,1914.4,1914.0,15.25436728]
[1688320283338,13.17606,1914.4,1914.0,10.02976728]
[1688320283640,13.17606,1914.4,1914.0,6.86224544]
[1688320283861,15.78784,1914.4,1914.0,0.01473226]
[1688320284734,25.78784,1914.4,1914.0,0.01473226]
[1688320288994,23.17606,1914.4,1914.0,0.01473226]
[1688320289279,26.04204179,1914.4,1914.0,0.01473226]
[1688320289684,16.04204179,1914.4,1914.0,0.01473226]
[1688320291593,0.956,1914.2,1913.8,0.90796623]
[1688320291745,7.92364,1914.1,1913.8,0.90796623]
[1688320292083,7.92364,1914.1,1913.8,6.13311623]
[1688320292455,2.6992,1914.1,1913.8,6.13311623]
[1688320293428,2.6992,1914.1,1913.8,11.35831623]
[1688320299552,4.013974,1914.1,1913.8,0.90796623]
[1688320299738,0.956,1914.0,1913.8,0.90796623]
[1688320299910,5.22493,1913.9,1913.8,0.90796623]
[1688320300645,15.22493,1913.9,1913.8,0.90796623]
[1688320300951,20.44986,1913.9,1913.8,0.90796623]
[1688320302546,23.06232,1913.9,1913.8,0.90796623]
[1688320302715,22.851692,1913.9,1913.8,0.90796623]
[1688320303064,17.626762,1913.9,1913.8,0.90796623]
[1688320303708,12.401832,1913.9,1913.8,0.90796623]
[1688320303909,24.01832,1913.9,1913.8,0.90796623]
[1688320304648,10.0,1913.9,1913.8,0.90796623]
[1688320304816,15.22493,1913.9,1913.8,0.90796623]
[1688320305608,5.22493,1913.9,1913.8,0.90796623]
[1688320306014,10.44986,1913.9,1913.8,0.90796623]
[1688320306218,6.625749,1913.9,1913.8,0.90796623]
[1688320306518,11.850679,1913.9,1913.8,0.90796623]
[1688320309743,21.850679,1913.9,1913.8,0.90796623]
[1688320310659,20.52634084,1913.9,1913.8,0.90796623]
[1688320310855,34.40568826,1913.9,1913.8,0.90796623]
[1688320311249,33.58866084,1913.9,1913.8,0.90796623]
[1688320311573,34.40568826,1913.9,1913.8,0.90796623]
[1688320312171,39.63061826,1913.9,1913.8,0.90796623]
[1688320312326,43.13061826,1913.9,1913.8,0.90796623]
[1688320312524,43.4038717,1913.9,1913.8,0.90796623]
[1688320312729,43.82112991,1913.9,1913.8,0.90796623]
[1688320313381,43.54648852,1913.9,1913.8,0.90796623]
[1688320317578,42.73084905,1913.9,1913.8,0.90796623]
[1688320320445,52.54648852,1913.9,1913.8,6.23e-06]
[1688320321164,54.15098852,1913.9,1913.8,6.23e-06]
[1688320321558,55.17396227,1913.9,1913.8,6.23e-06]
[1688320322874,59.21898981,1913.9,1913.8,6.23e-06]
[1688320323051,59.69898981,1913.9,1913.8,6.23e-06]
[1688320323453,59.9736312,1913.9,1913.8,6.23e-06]
[1688320323673,60.78830286,1913.9,1913.8,6.23e-06]
[1688320324149,60.24156737,1913.9,1913.8,6.23e-06]
[1688320324488,60.76306737,1913.9,1913.8,6.23e-06]
[1688320325193,62.15364484,1913.9,1913.8,6.23e-06]
[1688320326287,61.88078292,1913.9,1913.8,6.23e-06]
[1688320326453,60.49020545,1913.9,1913.8,6.23e-06]
[1688320327711,62.76306737,1913.9,1913.8,6.23e-06]
[1688320327852,63.43687526,1913.9,1913.8,6.23e-06]
[1688320329193,71.43687526,1913.9,1913.8,6.23e-06]
[1688320329378,0.5,1913.4,1913.0,0.1]
[1688320329588,27.27870184,1913.3,1913.0,0.1]
[1688320329897,13.06777,1913.1,1913.0,0.1]
[1688320330493,16.06777,1913.1,1913.0,0.1]
[1688320330656,26.06777,1913.1,1913.0,0.1]
[1688320333203,0.5,1913.0,1912.9,0.1]
[1688320333349,38.31977184,1913.0,1912.9,0.1]
[1688320333555,41.9772975,1913.0,1912.9,0.1]
[1688320333755,26.89371,1912.8,1912.7,0.1]
[1688320333988,37.18373184,1912.8,1912.7,0.1]